[Event "*** SCC Grand Prix: Titled Tuesday Blitz"]
[Site "Chess.com"]
[Date "2020.06.23"]
[Round "3"]
[White "Belka1989"]
[Black "GMMatamoros"]
[Result "0-1"]
[WhiteElo "2350"]
[BlackElo "2547"]
[TimeControl "180+1"]
[EndTime "10:30:02 PDT"]
[Termination "GMMatamoros won on time"]

1. d4 {[%clk 0:03:00.9]} 1... Nf6 {[%clk 0:02:59.4]} 2. Nf3 {[%clk 0:02:59.9]}
2... c5 {[%clk 0:02:59.7]} 3. c3 {[%clk 0:02:59.5]} 3... Qc7 {[%clk 0:02:58.7]}
4. Bg5 {[%clk 0:02:55.4]} 4... Ne4 {[%clk 0:02:58]} 5. Be3 {[%clk 0:02:52.5]}
5... d5 {[%clk 0:02:51.5]} 6. Nbd2 {[%clk 0:02:50.9]} 6... Nf6 {[%clk
0:02:48.4]} 7. dxc5 {[%clk 0:02:47.7]} 7... Ng4 {[%clk 0:02:41.7]} 8. Bg5 {[%clk
0:02:29.4]} 8... Qxc5 {[%clk 0:02:41.5]} 9. e3 {[%clk 0:02:24.7]} 9... e6 {[%clk
0:02:31.6]} 10. Bd3 {[%clk 0:02:20.9]} 10... Nd7 {[%clk 0:02:26.7]} 11. O-O
{[%clk 0:02:20.9]} 11... Be7 {[%clk 0:02:24.1]} 12. h3 {[%clk 0:02:17.5]} 12...
Nge5 {[%clk 0:02:07.6]} 13. Bxe7 {[%clk 0:02:13.1]} 13... Qxe7 {[%clk 0:02:07]}
14. Nxe5 {[%clk 0:02:09.7]} 14... Nxe5 {[%clk 0:02:07.9]} 15. Bb5+ {[%clk
0:02:08.8]} 15... Bd7 {[%clk 0:02:05.5]} 16. Qa4 {[%clk 0:02:05.8]} 16... O-O
{[%clk 0:01:54.9]} 17. Bxd7 {[%clk 0:02:01.2]} 17... Nxd7 {[%clk 0:01:54.7]} 18.
Nf3 {[%clk 0:02:00.8]} 18... Nb6 {[%clk 0:01:49.4]} 19. Qb3 {[%clk 0:01:52.2]}
19... Rfc8 {[%clk 0:01:42.4]} 20. Rad1 {[%clk 0:01:49.1]} 20... Nc4 {[%clk
0:01:40]} 21. Nd2 {[%clk 0:01:48.1]} 21... Nd6 {[%clk 0:01:38.6]} 22. Nf3 {[%clk
0:01:47]} 22... b5 {[%clk 0:01:36.8]} 23. Nd4 {[%clk 0:01:32.2]} 23... Qb7
{[%clk 0:01:18.6]} 24. Qb4 {[%clk 0:01:19.5]} 24... Qb6 {[%clk 0:01:16.5]} 25.
a3 {[%clk 0:01:13.3]} 25... a5 {[%clk 0:01:14.8]} 26. Qb3 {[%clk 0:01:12.6]}
26... Rab8 {[%clk 0:01:12.7]} 27. Rfe1 {[%clk 0:01:07.9]} 27... g6 {[%clk
0:01:01.3]} 28. f3 {[%clk 0:00:52.6]} 28... Nc4 {[%clk 0:00:54.6]} 29. Rd3
{[%clk 0:00:40.9]} 29... b4 {[%clk 0:00:51.7]} 30. axb4 {[%clk 0:00:39.4]} 30...
axb4 {[%clk 0:00:52.6]} 31. cxb4 {[%clk 0:00:29.5]} 31... Qxb4 {[%clk
0:00:52.2]} 32. Qxb4 {[%clk 0:00:30.4]} 32... Rxb4 {[%clk 0:00:52]} 33. b3
{[%clk 0:00:30.4]} 33... Nd6 {[%clk 0:00:42]} 34. Rd2 {[%clk 0:00:29.1]} 34...
Rc3 {[%clk 0:00:36.4]} 35. Kf2 {[%clk 0:00:26.1]} 35... Nb5 {[%clk 0:00:29.8]}
36. Nxb5 {[%clk 0:00:23.6]} 36... Rxb5 {[%clk 0:00:30.7]} 37. Rb1 {[%clk
0:00:20.1]} 37... Rcxb3 {[%clk 0:00:31]} 38. Rxb3 {[%clk 0:00:20.9]} 38... Rxb3
{[%clk 0:00:31.8]} 39. h4 {[%clk 0:00:20.9]} 39... h6 {[%clk 0:00:31.5]} 40. Kg3
{[%clk 0:00:19.9]} 40... Kg7 {[%clk 0:00:32]} 41. Kf2 {[%clk 0:00:18.5]} 41...
Kf6 {[%clk 0:00:32.3]} 42. Rc2 {[%clk 0:00:17.6]} 42... Rb6 {[%clk 0:00:30.4]}
43. Rc7 {[%clk 0:00:14.5]} 43... Rb4 {[%clk 0:00:29.2]} 44. Kg3 {[%clk
0:00:13.6]} 44... g5 {[%clk 0:00:28.9]} 45. hxg5+ {[%clk 0:00:12.1]} 45... hxg5
{[%clk 0:00:29.8]} 46. Kf2 {[%clk 0:00:12.4]} 46... Rb2+ {[%clk 0:00:29.6]} 47.
Kg3 {[%clk 0:00:11.9]} 47... Re2 {[%clk 0:00:29.4]} 48. Rc3 {[%clk 0:00:12]}
48... Ke5 {[%clk 0:00:29.5]} 49. Ra3 {[%clk 0:00:12.1]} 49... f5 {[%clk
0:00:29.2]} 50. f4+ {[%clk 0:00:12]} 50... gxf4+ {[%clk 0:00:28.7]} 51. exf4+
{[%clk 0:00:12.9]} 51... Kf6 {[%clk 0:00:29.1]} 52. Ra8 {[%clk 0:00:10.7]} 52...
Re4 {[%clk 0:00:26.6]} 53. Kf3 {[%clk 0:00:09.3]} 53... Ke7 {[%clk 0:00:26.6]}
54. g3 {[%clk 0:00:08.3]} 54... Kd6 {[%clk 0:00:25.4]} 55. Ra6+ {[%clk
0:00:07.2]} 55... Kc5 {[%clk 0:00:25.5]} 56. Ra5+ {[%clk 0:00:07.4]} 56... Kb4
{[%clk 0:00:25.6]} 57. Ra6 {[%clk 0:00:06.8]} 57... d4 {[%clk 0:00:25.1]} 58.
Rd6 {[%clk 0:00:06]} 58... Kc3 {[%clk 0:00:25.2]} 59. Rc6+ {[%clk 0:00:04.7]}
59... Kd2 {[%clk 0:00:25.4]} 60. Ra6 {[%clk 0:00:02.4]} 60... d3 {[%clk
0:00:25.2]} 61. Ra2+ {[%clk 0:00:02.9]} 61... Kc3 {[%clk 0:00:25.3]} 62. Ra3+
{[%clk 0:00:02.5]} 62... Kc2 {[%clk 0:00:25.4]} 63. Ra2+ {[%clk 0:00:02.4]}
63... Kb3 {[%clk 0:00:25.6]} 64. Ra6 {[%clk 0:00:01.8]} 64... d2 {[%clk
0:00:25]} 65. Rd6 {[%clk 0:00:01.8]} 65... Kc2 {[%clk 0:00:25.2]} 66. Rc6+
{[%clk 0:00:02.2]} 66... Kd3 {[%clk 0:00:25.2]} 67. Rc7 {[%clk 0:00:02.9]} 67...
d1=Q+ {[%clk 0:00:24.1]} 0-1

[Event "*** SCC Grand Prix: Titled Tuesday Blitz"]
[Site "Chess.com"]
[Date "2020.06.23"]
[Round "3"]
[White "Unknown_IM"]
[Black "PredragNikac"]
[Result "0-1"]
[WhiteElo "2384"]
[BlackElo "2201"]
[TimeControl "180+1"]
[EndTime "10:30:03 PDT"]
[Termination "PredragNikac won by resignation"]

1. d4 {[%clk 0:02:59.7]} 1... e5 {[%clk 0:02:59.4]} 2. d5 {[%clk 0:02:57.6]}
2... Bc5 {[%clk 0:02:58.8]} 3. e4 {[%clk 0:02:50.9]} 3... Qh4 {[%clk 0:02:54.5]}
4. Qe2 {[%clk 0:02:46.2]} 4... Nf6 {[%clk 0:02:53.2]} 5. Nc3 {[%clk 0:02:44.5]}
5... d6 {[%clk 0:02:48.3]} 6. Nf3 {[%clk 0:02:39.3]} 6... Qh5 {[%clk 0:02:47.3]}
7. Be3 {[%clk 0:02:36.5]} 7... Nbd7 {[%clk 0:02:46]} 8. Nd2 {[%clk 0:02:28.6]}
8... Qg6 {[%clk 0:02:41]} 9. g3 {[%clk 0:02:15.7]} 9... a6 {[%clk 0:02:39.4]}
10. Bg2 {[%clk 0:02:14.7]} 10... h5 {[%clk 0:02:38]} 11. O-O {[%clk 0:02:09.6]}
11... h4 {[%clk 0:02:37.4]} 12. Bf3 {[%clk 0:01:49.8]} 12... b5 {[%clk
0:02:20.4]} 13. Nd1 {[%clk 0:01:46.9]} 13... Bb6 {[%clk 0:02:04.8]} 14. c3
{[%clk 0:01:45.2]} 14... Nc5 {[%clk 0:02:04.2]} 15. b4 {[%clk 0:01:18.5]} 15...
Na4 {[%clk 0:02:03.5]} 16. Rc1 {[%clk 0:01:10.1]} 16... Bh3 {[%clk 0:01:57.6]}
17. Re1 {[%clk 0:01:07.9]} 17... hxg3 {[%clk 0:01:54.5]} 18. fxg3 {[%clk
0:01:04.8]} 18... Bg4 {[%clk 0:01:48.9]} 19. Bxb6 {[%clk 0:01:00.4]} 19... Nxb6
{[%clk 0:01:48.1]} 20. Ne3 {[%clk 0:01:00.2]} 20... Bxf3 {[%clk 0:01:47.1]} 21.
Qxf3 {[%clk 0:00:57.3]} 21... Qh6 {[%clk 0:01:46.5]} 22. Re2 {[%clk 0:00:55.8]}
22... Nc4 {[%clk 0:01:43.9]} 23. Ndxc4 {[%clk 0:00:51.9]} 23... bxc4 {[%clk
0:01:43.5]} 24. Rf1 {[%clk 0:00:51.7]} 24... Qh5 {[%clk 0:01:32.2]} 25. Nxc4
{[%clk 0:00:40]} 25... Qxf3 {[%clk 0:01:31.5]} 26. Rxf3 {[%clk 0:00:40.9]} 26...
Kd7 {[%clk 0:01:27.3]} 27. Nb2 {[%clk 0:00:40.1]} 27... a5 {[%clk 0:01:22.5]}
28. b5 {[%clk 0:00:34.5]} 28... a4 {[%clk 0:01:21.7]} 29. c4 {[%clk 0:00:32.1]}
29... a3 {[%clk 0:01:21.1]} 30. Nd1 {[%clk 0:00:31.3]} 30... Ra4 {[%clk
0:01:20.7]} 31. Rc3 {[%clk 0:00:31]} 31... Rb4 {[%clk 0:01:14.7]} 32. Rxa3
{[%clk 0:00:20.9]} 32... Rxc4 {[%clk 0:01:14.1]} 33. Nf2 {[%clk 0:00:19.1]}
33... Rb8 {[%clk 0:01:09.8]} 34. Rb3 {[%clk 0:00:18.7]} 34... Ra4 {[%clk
0:01:07.8]} 35. Kg2 {[%clk 0:00:17]} 35... Rba8 {[%clk 0:01:04.6]} 36. Rbb2
{[%clk 0:00:16.3]} 36... Rb8 {[%clk 0:01:01.8]} 37. Rb3 {[%clk 0:00:16.4]} 37...
Kc8 {[%clk 0:01:01.5]} 38. Kf3 {[%clk 0:00:15.8]} 38... Kb7 {[%clk 0:01:01.2]}
39. Reb2 {[%clk 0:00:15.5]} 39... Kb6 {[%clk 0:01:00.4]} 40. Rb4 {[%clk
0:00:14]} 40... Rba8 {[%clk 0:00:58.3]} 41. Rxa4 {[%clk 0:00:11.8]} 41... Rxa4
{[%clk 0:00:57.7]} 42. h4 {[%clk 0:00:11.7]} 42... g6 {[%clk 0:00:54.6]} 43. g4
{[%clk 0:00:11.5]} 43... Ra3+ {[%clk 0:00:52.3]} 44. Kg2 {[%clk 0:00:10]} 44...
Re3 {[%clk 0:00:48.7]} 45. Rb4 {[%clk 0:00:10.1]} 45... Re2 {[%clk 0:00:45.7]}
46. g5 {[%clk 0:00:09.8]} 46... Nh5 {[%clk 0:00:40.8]} 47. a4 {[%clk 0:00:09.8]}
47... Ra2 {[%clk 0:00:38]} 48. Rc4 {[%clk 0:00:09.4]} 48... Kb7 {[%clk
0:00:34.4]} 49. Kf3 {[%clk 0:00:08.8]} 49... Ra3+ {[%clk 0:00:32]} 50. Ke2
{[%clk 0:00:09.1]} 50... Ng3+ {[%clk 0:00:29]} 51. Kd2 {[%clk 0:00:08.7]} 51...
Ra2+ {[%clk 0:00:28.8]} 52. Ke3 {[%clk 0:00:08.4]} 52... Nf1+ {[%clk 0:00:25.5]}
53. Kf3 {[%clk 0:00:07.9]} 53... Nd2+ {[%clk 0:00:25.1]} 54. Ke3 {[%clk
0:00:08.2]} 54... Nxc4+ {[%clk 0:00:26]} 55. Kd3 {[%clk 0:00:08.6]} 55... Rxf2
{[%clk 0:00:25.7]} 56. Kxc4 {[%clk 0:00:08.8]} 56... Rf4 {[%clk 0:00:26.6]} 57.
Kd3 {[%clk 0:00:08.7]} 57... Rxh4 {[%clk 0:00:26.4]} 58. Ke3 {[%clk 0:00:09.6]}
58... Rg4 {[%clk 0:00:26.6]} 59. Kf3 {[%clk 0:00:10]} 59... Rxg5 {[%clk
0:00:27.5]} 60. Kf2 {[%clk 0:00:10.4]} 60... Rh5 {[%clk 0:00:26.1]} 61. Kf3
{[%clk 0:00:11.3]} 61... Rh4 {[%clk 0:00:26.2]} 62. a5 {[%clk 0:00:10.7]} 62...
Rh3+ {[%clk 0:00:25.5]} 63. Kg4 {[%clk 0:00:10.7]} 63... Ra3 {[%clk 0:00:26.4]}
64. Kg5 {[%clk 0:00:11.1]} 64... Rxa5 {[%clk 0:00:26]} 65. Kf6 {[%clk 0:00:12]}
65... Rxb5 {[%clk 0:00:26.5]} 66. Kxf7 {[%clk 0:00:12.6]} 66... Rb4 {[%clk
0:00:27.4]} 67. Kxg6 {[%clk 0:00:13]} 67... Rxe4 {[%clk 0:00:27.3]} 68. Kf5
{[%clk 0:00:13.9]} 68... Rd4 {[%clk 0:00:28]} 69. Ke6 {[%clk 0:00:14.8]} 69...
e4 {[%clk 0:00:28]} 70. Kf5 {[%clk 0:00:15.7]} 70... e3 {[%clk 0:00:28.1]} 0-1

[Event "*** SCC Grand Prix: Titled Tuesday Blitz"]
[Site "Chess.com"]
[Date "2020.06.23"]
[Round "3"]
[White "kleopl"]
[Black "GregShahade"]
[Result "1/2-1/2"]
[WhiteElo "2398"]
[BlackElo "2572"]
[TimeControl "180+1"]
[EndTime "10:30:04 PDT"]
[Termination "Game drawn by repetition"]

1. c4 {[%clk 0:03:00.9]} 1... Nf6 {[%clk 0:02:57.9]} 2. Nc3 {[%clk 0:03:00.4]}
2... g6 {[%clk 0:02:55]} 3. g3 {[%clk 0:03:00.5]} 3... d5 {[%clk 0:02:53.4]} 4.
cxd5 {[%clk 0:02:58.8]} 4... Nxd5 {[%clk 0:02:54.3]} 5. Bg2 {[%clk 0:02:59.2]}
5... Nb6 {[%clk 0:02:52.5]} 6. d4 {[%clk 0:02:53.2]} 6... Bg7 {[%clk 0:02:51.2]}
7. Nf3 {[%clk 0:02:52.8]} 7... Nc6 {[%clk 0:02:50.7]} 8. e3 {[%clk 0:02:51.8]}
8... O-O {[%clk 0:02:51]} 9. O-O {[%clk 0:02:51.3]} 9... Re8 {[%clk 0:02:51.6]}
10. b3 {[%clk 0:02:49.8]} 10... e5 {[%clk 0:02:45]} 11. dxe5 {[%clk 0:02:48.9]}
11... Nxe5 {[%clk 0:02:43.3]} 12. Nxe5 {[%clk 0:02:45.4]} 12... Bxe5 {[%clk
0:02:38.9]} 13. Bb2 {[%clk 0:02:43.6]} 13... c6 {[%clk 0:02:37.4]} 14. Qxd8
{[%clk 0:02:41.8]} 14... Rxd8 {[%clk 0:02:36.8]} 15. Rad1 {[%clk 0:02:41.5]}
15... Bg4 {[%clk 0:02:25.1]} 16. f3 {[%clk 0:02:41]} 16... Be6 {[%clk 0:02:25]}
17. Kf2 {[%clk 0:02:29]} 17... a5 {[%clk 0:02:23.7]} 18. Ke2 {[%clk 0:02:17.5]}
18... Rxd1 {[%clk 0:02:10.5]} 19. Rxd1 {[%clk 0:02:12]} 19... a4 {[%clk
0:02:01]} 20. bxa4 {[%clk 0:01:41.1]} 20... Bc4+ {[%clk 0:01:17.7]} 21. Kd2
{[%clk 0:01:32.5]} 21... Bxa2 {[%clk 0:01:12.6]} 22. Nxa2 {[%clk 0:01:13.5]}
22... Bxb2 {[%clk 0:01:11.7]} 23. Rb1 {[%clk 0:01:13.8]} 23... Rxa4 {[%clk
0:00:46.1]} 24. Rxb2 {[%clk 0:01:05.9]} 24... Nc4+ {[%clk 0:00:45.9]} 25. Kc3
{[%clk 0:01:06.3]} 25... Nxb2 {[%clk 0:00:43.1]} 26. Kxb2 {[%clk 0:01:07.2]}
26... b5 {[%clk 0:00:31.5]} 27. Nc3 {[%clk 0:01:04.3]} 27... Ra7 {[%clk
0:00:28.3]} 28. f4 {[%clk 0:01:04]} 28... Rc7 {[%clk 0:00:25.3]} 29. Kb3 {[%clk
0:00:58.9]} 29... Re7 {[%clk 0:00:20.4]} 30. Bxc6 {[%clk 0:00:56.4]} 30... Rxe3
{[%clk 0:00:20.4]} 31. Bxb5 {[%clk 0:00:54.5]} 31... Rf3 {[%clk 0:00:20.6]} 32.
Kc4 {[%clk 0:00:43]} 32... Rf2 {[%clk 0:00:20.5]} 33. Kd4 {[%clk 0:00:34.7]}
33... Rxh2 {[%clk 0:00:19.8]} 34. Ke3 {[%clk 0:00:35.1]} 34... Rb2 {[%clk
0:00:18.4]} 35. Bc4 {[%clk 0:00:31.4]} 35... Rg2 {[%clk 0:00:16.6]} 36. Ne4
{[%clk 0:00:29.7]} 36... Kg7 {[%clk 0:00:12.3]} 37. Kf3 {[%clk 0:00:30.1]} 37...
Rc2 {[%clk 0:00:11.6]} 38. Bd5 {[%clk 0:00:27.5]} 38... Rc8 {[%clk 0:00:08.1]}
39. Ng5 {[%clk 0:00:27.2]} 39... Rc7 {[%clk 0:00:08.4]} 40. Kg4 {[%clk
0:00:23.4]} 40... f5+ {[%clk 0:00:06.7]} 41. Kf3 {[%clk 0:00:23.4]} 41... Rc3+
{[%clk 0:00:06.6]} 42. Kf2 {[%clk 0:00:23.6]} 42... h6 {[%clk 0:00:06.7]} 43.
Nf3 {[%clk 0:00:21.7]} 43... Kf6 {[%clk 0:00:06.3]} 44. Ne5 {[%clk 0:00:17.1]}
44... Rc2+ {[%clk 0:00:06.1]} 45. Kf3 {[%clk 0:00:16.8]} 45... Rc3+ {[%clk
0:00:06.6]} 46. Kf2 {[%clk 0:00:16.8]} 46... Rc2+ {[%clk 0:00:06.9]} 47. Kf3
{[%clk 0:00:17.2]} 47... g5 {[%clk 0:00:07.3]} 48. Bb7 {[%clk 0:00:14.3]} 48...
Rc3+ {[%clk 0:00:07.1]} 49. Kg2 {[%clk 0:00:13.8]} 49... gxf4 {[%clk 0:00:06.7]}
50. gxf4 {[%clk 0:00:13.6]} 50... Rb3 {[%clk 0:00:07]} 51. Bf3 {[%clk
0:00:12.8]} 51... Rb4 {[%clk 0:00:04.9]} 52. Kg3 {[%clk 0:00:12.9]} 52... Rb3
{[%clk 0:00:04.9]} 53. Nd7+ {[%clk 0:00:13]} 53... Ke7 {[%clk 0:00:04.6]} 54.
Nc5 {[%clk 0:00:12.3]} 54... Rc3 {[%clk 0:00:04.3]} 55. Na4 {[%clk 0:00:12]}
55... Ra3 {[%clk 0:00:03.1]} 56. Nb6 {[%clk 0:00:11.8]} 56... Kf6 {[%clk
0:00:03.8]} 57. Nd5+ {[%clk 0:00:11.8]} 57... Kg7 {[%clk 0:00:04.3]} 58. Ne7
{[%clk 0:00:11.9]} 58... Ra5 {[%clk 0:00:04.1]} 59. Be2 {[%clk 0:00:11.2]} 59...
Kf6 {[%clk 0:00:04.2]} 60. Ng8+ {[%clk 0:00:10.7]} 60... Kg7 {[%clk 0:00:04.1]}
61. Ne7 {[%clk 0:00:11.1]} 61... Kf6 {[%clk 0:00:04.8]} 62. Nc6 {[%clk
0:00:11.2]} 62... Ra3+ {[%clk 0:00:05.3]} 63. Bf3 {[%clk 0:00:11.6]} 63... Rc3
{[%clk 0:00:05.6]} 64. Ne5 {[%clk 0:00:11.6]} 64... Ra3 {[%clk 0:00:06.3]} 65.
Nc6 {[%clk 0:00:10.9]} 65... Rc3 {[%clk 0:00:06.3]} 66. Nd4 {[%clk 0:00:11.1]}
66... Ra3 {[%clk 0:00:05.8]} 67. Kg2 {[%clk 0:00:11.3]} 67... Ra2+ {[%clk
0:00:06]} 68. Kg3 {[%clk 0:00:11.2]} 68... Ra3 {[%clk 0:00:06.9]} 69. Ne2 {[%clk
0:00:11.4]} 69... Rb3 {[%clk 0:00:06.7]} 70. Ng1 {[%clk 0:00:11.7]} 70... Ra3
{[%clk 0:00:07.1]} 71. Ne2 {[%clk 0:00:11.9]} 71... Ra2 {[%clk 0:00:07.5]} 72.
Nd4 {[%clk 0:00:12.2]} 72... Ra3 {[%clk 0:00:08]} 1/2-1/2

[Event "*** SCC Grand Prix: Titled Tuesday Blitz"]
[Site "Chess.com"]
[Date "2020.06.23"]
[Round "3"]
[White "blitzking1729"]
[Black "eightbyeightchess"]
[Result "0-1"]
[WhiteElo "2572"]
[BlackElo "2407"]
[TimeControl "180+1"]
[EndTime "10:30:05 PDT"]
[Termination "eightbyeightchess won by resignation"]

1. c4 {[%clk 0:03:00.9]} 1... c6 {[%clk 0:02:57.9]} 2. d4 {[%clk 0:02:58.7]}
2... d5 {[%clk 0:02:56.7]} 3. Nf3 {[%clk 0:02:59.3]} 3... Nf6 {[%clk 0:02:56.5]}
4. Qc2 {[%clk 0:02:58.9]} 4... dxc4 {[%clk 0:02:55.3]} 5. Qxc4 {[%clk
0:02:59.8]} 5... Bf5 {[%clk 0:02:54.7]} 6. g3 {[%clk 0:02:59.6]} 6... Nbd7
{[%clk 0:02:54.3]} 7. Bg2 {[%clk 0:02:58.8]} 7... e6 {[%clk 0:02:54.7]} 8. O-O
{[%clk 0:02:59.2]} 8... Be7 {[%clk 0:02:54]} 9. Qb3 {[%clk 0:02:59]} 9... Qb6
{[%clk 0:02:51.8]} 10. Nbd2 {[%clk 0:02:59.5]} 10... O-O {[%clk 0:02:51.6]} 11.
Nc4 {[%clk 0:02:59.3]} 11... Qa6 {[%clk 0:02:50.9]} 12. a4 {[%clk 0:02:52.3]}
12... Nb6 {[%clk 0:02:48.2]} 13. Nxb6 {[%clk 0:02:47.4]} 13... axb6 {[%clk
0:02:49.1]} 14. Re1 {[%clk 0:02:44.1]} 14... Rfd8 {[%clk 0:02:35.5]} 15. Bg5
{[%clk 0:02:39.1]} 15... h6 {[%clk 0:02:34]} 16. Bxf6 {[%clk 0:02:36]} 16...
Bxf6 {[%clk 0:02:34.9]} 17. e3 {[%clk 0:02:36.3]} 17... Bd3 {[%clk 0:02:22.1]}
18. Nd2 {[%clk 0:01:51]} 18... Be7 {[%clk 0:02:08.9]} 19. Bf1 {[%clk 0:01:45.6]}
19... Bxf1 {[%clk 0:02:07]} 20. Rxf1 {[%clk 0:01:43]} 20... b5 {[%clk
0:01:56.9]} 21. axb5 {[%clk 0:01:34.4]} 21... Qxa1 {[%clk 0:01:57.8]} 22. Rxa1
{[%clk 0:01:33.8]} 22... Rxa1+ {[%clk 0:01:58.7]} 23. Kg2 {[%clk 0:01:34.2]}
23... c5 {[%clk 0:01:52.8]} 24. Nf3 {[%clk 0:01:24.3]} 24... cxd4 {[%clk
0:01:52.8]} 25. exd4 {[%clk 0:01:23.9]} 25... Bf6 {[%clk 0:01:48.1]} 26. Qc4
{[%clk 0:01:21]} 26... Rb1 {[%clk 0:01:30.4]} 27. b3 {[%clk 0:01:15.9]} 27... g6
{[%clk 0:01:22.1]} 28. h3 {[%clk 0:01:14.4]} 28... h5 {[%clk 0:01:21.8]} 29. g4
{[%clk 0:01:11.7]} 29... hxg4 {[%clk 0:01:21.2]} 30. hxg4 {[%clk 0:01:12.6]}
30... Ra1 {[%clk 0:01:14.6]} 31. g5 {[%clk 0:01:11.6]} 31... Bg7 {[%clk
0:01:11.8]} 32. Qc7 {[%clk 0:01:10.1]} 32... Raa8 {[%clk 0:01:12.4]} 33. b6
{[%clk 0:00:57.3]} 33... Rab8 {[%clk 0:01:07.6]} 34. Ne5 {[%clk 0:00:48.3]}
34... Bxe5 {[%clk 0:01:06.6]} 35. dxe5 {[%clk 0:00:45]} 35... Rdc8 {[%clk
0:01:06.7]} 36. Qd6 {[%clk 0:00:33.2]} 36... Rd8 {[%clk 0:01:06.6]} 37. Qe7
{[%clk 0:00:27.9]} 37... Rdc8 {[%clk 0:01:01.6]} 38. Qd6 {[%clk 0:00:19.8]}
38... Rd8 {[%clk 0:00:51.5]} 39. Qe7 {[%clk 0:00:17.4]} 39... Kg7 {[%clk
0:00:50.9]} 40. b4 {[%clk 0:00:16.6]} 40... Rd4 {[%clk 0:00:36.5]} 41. Qc7
{[%clk 0:00:11]} 41... Rbd8 {[%clk 0:00:33.8]} 42. Qxb7 {[%clk 0:00:11]} 42...
Rxb4 {[%clk 0:00:33.2]} 43. Qe7 {[%clk 0:00:11]} 43... Rdd4 {[%clk 0:00:23.6]}
44. b7 {[%clk 0:00:10.6]} 44... Rb5 {[%clk 0:00:18.9]} 45. Qf6+ {[%clk
0:00:08.9]} 45... Kg8 {[%clk 0:00:18.7]} 46. Qe7 {[%clk 0:00:08.5]} 46... Rdb4
{[%clk 0:00:17.4]} 47. Qd8+ {[%clk 0:00:08.4]} 47... Kg7 {[%clk 0:00:17.4]} 48.
Qf6+ {[%clk 0:00:08.3]} 48... Kg8 {[%clk 0:00:17.3]} 49. Qd8+ {[%clk 0:00:08.4]}
49... Kh7 {[%clk 0:00:17.4]} 50. Qf6 {[%clk 0:00:04.7]} 50... Rxb7 {[%clk
0:00:17.3]} 51. Qf3 {[%clk 0:00:04.2]} 51... Rd7 {[%clk 0:00:15.5]} 52. Qf6
{[%clk 0:00:03.9]} 52... Rbd4 {[%clk 0:00:14.7]} 53. Qf3 {[%clk 0:00:03.6]}
53... Kg8 {[%clk 0:00:14.4]} 54. Qa8+ {[%clk 0:00:02.7]} 54... Rd8 {[%clk
0:00:14.1]} 55. Qf3 {[%clk 0:00:03.2]} 55... R4d7 {[%clk 0:00:14.5]} 56. Qf4
{[%clk 0:00:02.8]} 56... Rd5 {[%clk 0:00:14.5]} 57. Qf6 {[%clk 0:00:02.9]} 57...
Rd4 {[%clk 0:00:13.5]} 58. Qf3 {[%clk 0:00:01.6]} 58... R8d5 {[%clk 0:00:13]}
59. Qf6 {[%clk 0:00:01.7]} 59... Re4 {[%clk 0:00:12]} 60. f4 {[%clk 0:00:01.9]}
60... Rd3 {[%clk 0:00:09.9]} 61. Kf2 {[%clk 0:00:01.9]} 61... Rc4 {[%clk
0:00:09.3]} 62. Qe7 {[%clk 0:00:02.3]} 62... Rc2+ {[%clk 0:00:09.2]} 63. Ke1
{[%clk 0:00:02.9]} 63... Rdd2 {[%clk 0:00:08.8]} 64. Qd8+ {[%clk 0:00:03]} 64...
Rxd8 {[%clk 0:00:08.4]} 0-1